[Event "Late-Titled-Tuesday-Blitz-March-05-2024"]
[Site "Chess.com"]
[Date "2024.03.05"]
[Round "11"]
[White "Pachonpower"]
[Black "Sjakkerntobi"]
[Result "1/2-1/2"]
[WhiteElo "2315"]
[BlackElo "2480"]
[TimeControl "180+1"]
[EndTime "16:06:07 PST"]
[Termination "Game drawn by stalemate"]

1. e4 {[%clk 0:02:54.5]} 1... e5 {[%clk 0:02:58.6]} 2. Nf3 {[%clk 0:02:54.5]}
2... d6 {[%clk 0:02:59]} 3. d4 {[%clk 0:02:54.3]} 3... Nd7 {[%clk 0:02:59.3]} 4.
dxe5 {[%clk 0:02:52.5]} 4... dxe5 {[%clk 0:02:59.6]} 5. Nc3 {[%clk 0:02:53.4]}
5... Ngf6 {[%clk 0:02:59.8]} 6. Bc4 {[%clk 0:02:53.3]} 6... Be7 {[%clk
0:02:59.9]} 7. O-O {[%clk 0:02:53.5]} 7... O-O {[%clk 0:03:00.6]} 8. Re1 {[%clk
0:02:49.8]} 8... c6 {[%clk 0:03:00.8]} 9. Nh4 {[%clk 0:02:47.8]} 9... Nb6 {[%clk
0:02:59.3]} 10. Qxd8 {[%clk 0:02:42]} 10... Rxd8 {[%clk 0:03:00.2]} 11. Bd3
{[%clk 0:02:42.4]} 11... Nxe4 {[%clk 0:02:59.6]} 12. Rxe4 {[%clk 0:02:42.2]}
12... f5 {[%clk 0:02:49.6]} 13. Nxf5 {[%clk 0:02:26.2]} 13... Bxf5 {[%clk
0:02:50.5]} 14. Re3 {[%clk 0:02:26.2]} 14... Bxd3 {[%clk 0:02:47]} 15. cxd3
{[%clk 0:02:27.1]} 15... Bf6 {[%clk 0:02:39.9]} 16. Ne4 {[%clk 0:02:26.5]} 16...
Nd5 {[%clk 0:02:39.7]} 17. Rf3 {[%clk 0:02:26.5]} 17... Be7 {[%clk 0:02:38.9]}
18. Bd2 {[%clk 0:02:25.7]} 18... Bb4 {[%clk 0:02:37.9]} 19. Rd1 {[%clk
0:02:19.5]} 19... Bxd2 {[%clk 0:02:37.7]} 20. Rxd2 {[%clk 0:02:20.4]} 20... Nb4
{[%clk 0:02:38.5]} 21. a3 {[%clk 0:02:19.1]} 21... Nd5 {[%clk 0:02:38.8]} 22. g3
{[%clk 0:02:18.9]} 22... a5 {[%clk 0:02:34]} 23. Kg2 {[%clk 0:02:19.4]} 23... b6
{[%clk 0:02:30.6]} 24. Rc2 {[%clk 0:02:18.3]} 24... c5 {[%clk 0:02:30.9]} 25.
Ng5 {[%clk 0:02:17.1]} 25... Rd7 {[%clk 0:02:30]} 26. Re2 {[%clk 0:02:17.1]}
26... Re8 {[%clk 0:02:29.4]} 27. Ne4 {[%clk 0:02:06.8]} 27... h6 {[%clk
0:02:21.9]} 28. Nc3 {[%clk 0:02:06.8]} 28... Nxc3 {[%clk 0:02:21.2]} 29. bxc3
{[%clk 0:02:07.7]} 29... Rd5 {[%clk 0:02:20]} 30. Rfe3 {[%clk 0:02:06.3]} 30...
Kf7 {[%clk 0:02:20.2]} 31. d4 {[%clk 0:02:05.6]} 31... cxd4 {[%clk 0:02:19.2]}
32. cxd4 {[%clk 0:02:05.7]} 32... Kf6 {[%clk 0:02:19.7]} 33. dxe5+ {[%clk
0:02:05.3]} 33... Rexe5 {[%clk 0:02:20.6]} 34. Rf3+ {[%clk 0:02:01.9]} 34... Ke6
{[%clk 0:02:19.1]} 35. Rb2 {[%clk 0:02:02.4]} 35... b5 {[%clk 0:02:19.1]} 36.
Rc3 {[%clk 0:01:57.4]} 36... Rc5 {[%clk 0:02:19]} 37. Rf3 {[%clk 0:01:55.4]}
37... Rc4 {[%clk 0:02:15.8]} 38. Rf8 {[%clk 0:01:53.2]} 38... Rcc5 {[%clk
0:01:56]} 39. h4 {[%clk 0:01:48]} 39... Rf5 {[%clk 0:01:55]} 40. Re8+ {[%clk
0:01:45.3]} 40... Kf7 {[%clk 0:01:54.8]} 41. Ra8 {[%clk 0:01:45.6]} 41... a4
{[%clk 0:01:54.8]} 42. Rd2 {[%clk 0:01:43.4]} 42... Rc7 {[%clk 0:01:48.6]} 43.
Ra5 {[%clk 0:01:39.7]} 43... Kg6 {[%clk 0:01:38.6]} 44. f3 {[%clk 0:01:34.7]}
44... Rc3 {[%clk 0:01:36.7]} 45. Rd6+ {[%clk 0:01:24.4]} 45... Kh7 {[%clk
0:01:36.9]} 46. f4 {[%clk 0:01:19.4]} 46... Rxa3 {[%clk 0:01:34.7]} 47. Rb6
{[%clk 0:01:17.7]} 47... Rb3 {[%clk 0:01:33.5]} 48. Kh3 {[%clk 0:01:09.7]} 48...
Rc5 {[%clk 0:01:28]} 49. Kg4 {[%clk 0:00:58.5]} 49... a3 {[%clk 0:01:24.7]} 50.
Rb7 {[%clk 0:00:57.2]} 50... h5+ {[%clk 0:01:16.3]} 51. Kh3 {[%clk 0:00:54.6]}
51... Rcc3 {[%clk 0:01:17]} 52. Rbxb5 {[%clk 0:00:53.6]} 52... Rxg3+ {[%clk
0:01:17.1]} 53. Kh2 {[%clk 0:00:54.1]} 53... Rxb5 {[%clk 0:01:15.6]} 54. Rxb5
{[%clk 0:00:55]} 54... Rg4 {[%clk 0:01:16.3]} 55. Rxh5+ {[%clk 0:00:54.2]} 55...
Kg6 {[%clk 0:01:16.1]} 56. Ra5 {[%clk 0:00:53.9]} 56... Rxf4 {[%clk 0:01:15.2]}
57. Kg3 {[%clk 0:00:52.2]} 57... Rf5 {[%clk 0:01:12]} 58. Rxa3 {[%clk
0:00:51.9]} 58... Kh5 {[%clk 0:01:12.7]} 59. Re3 {[%clk 0:00:48.8]} 59... Rc5
{[%clk 0:01:12.8]} 60. Rf3 {[%clk 0:00:45]} 60... g6 {[%clk 0:01:09.9]} 61. Re3
{[%clk 0:00:45.1]} 61... Rb5 {[%clk 0:01:08.5]} 62. Rd3 {[%clk 0:00:45.1]} 62...
Ra5 {[%clk 0:01:08]} 63. Rc3 {[%clk 0:00:45.1]} 63... Re5 {[%clk 0:01:06.8]} 64.
Rd3 {[%clk 0:00:44.9]} 64... Kh6 {[%clk 0:01:06.1]} 65. Kf4 {[%clk 0:00:42]}
65... Ra5 {[%clk 0:01:05.7]} 66. Kg4 {[%clk 0:00:42.1]} 66... Ra4+ {[%clk
0:01:05.6]} 67. Kh3 {[%clk 0:00:42.5]} 67... Kg7 {[%clk 0:01:06.5]} 68. Rd6
{[%clk 0:00:41.2]} 68... Kh6 {[%clk 0:01:05.4]} 69. Rd5 {[%clk 0:00:41.2]} 69...
Re4 {[%clk 0:01:03.1]} 70. Kg3 {[%clk 0:00:41.3]} 70... Kg7 {[%clk 0:01:03.3]}
71. Kh3 {[%clk 0:00:41.5]} 71... Kf7 {[%clk 0:01:03.3]} 72. Kg3 {[%clk
0:00:41.7]} 72... Ke6 {[%clk 0:01:03.7]} 73. Rg5 {[%clk 0:00:41.7]} 73... Kf6
{[%clk 0:01:04.1]} 74. Rb5 {[%clk 0:00:41.4]} 74... Re3+ {[%clk 0:00:59.6]} 75.
Kf4 {[%clk 0:00:41.1]} 75... Rc3 {[%clk 0:00:57.9]} 76. Rb6+ {[%clk 0:00:40.9]}
76... Kg7 {[%clk 0:00:58.6]} 77. Kg5 {[%clk 0:00:39.2]} 77... Rc5+ {[%clk
0:00:58.5]} 78. Kg4 {[%clk 0:00:39.7]} 78... Kh6 {[%clk 0:00:59.3]} 79. Rb4
{[%clk 0:00:38.9]} 79... Rd5 {[%clk 0:00:57.6]} 80. Re4 {[%clk 0:00:38.8]} 80...
Rd1 {[%clk 0:00:57.9]} 81. Kh3 {[%clk 0:00:37.3]} 81... Rf1 {[%clk 0:00:56]} 82.
Re5 {[%clk 0:00:37.3]} 82... Rf3+ {[%clk 0:00:54.8]} 83. Kg4 {[%clk 0:00:37.4]}
83... Ra3 {[%clk 0:00:53.1]} 84. Rb5 {[%clk 0:00:34.5]} 84... Ra4+ {[%clk
0:00:53.3]} 85. Kh3 {[%clk 0:00:34.8]} 85... Re4 {[%clk 0:00:52.4]} 86. Kg3
{[%clk 0:00:34.4]} 86... Kg7 {[%clk 0:00:52.8]} 87. Rb6 {[%clk 0:00:34]} 87...
Re5 {[%clk 0:00:51.3]} 88. Kf4 {[%clk 0:00:33.7]} 88... Rc5 {[%clk 0:00:50.6]}
89. Kg4 {[%clk 0:00:34.1]} 89... Kh6 {[%clk 0:00:51]} 90. Rb4 {[%clk 0:00:33.5]}
90... Rc1 {[%clk 0:00:49.5]} 91. Rb5 {[%clk 0:00:33.3]} 91... Rg1+ {[%clk
0:00:49.4]} 92. Kh3 {[%clk 0:00:33.5]} 92... Rh1+ {[%clk 0:00:49.7]} 93. Kg4
{[%clk 0:00:33.9]} 93... Rg1+ {[%clk 0:00:50.2]} 94. Kh3 {[%clk 0:00:34.2]}
94... Ra1 {[%clk 0:00:51.1]} 95. Rd5 {[%clk 0:00:29.7]} 95... Ra3+ {[%clk
0:00:44.3]} 96. Kg4 {[%clk 0:00:29.6]} 96... Ra4+ {[%clk 0:00:44.8]} 97. Kh3
{[%clk 0:00:28.9]} 97... Rf4 {[%clk 0:00:45.1]} 98. Re5 {[%clk 0:00:27.8]} 98...
Rf1 {[%clk 0:00:43.9]} 99. Kg2 {[%clk 0:00:26.4]} 99... Rf8 {[%clk 0:00:42.3]}
100. Kg3 {[%clk 0:00:25.8]} 100... Kg7 {[%clk 0:00:42.9]} 101. Kg4 {[%clk
0:00:24.8]} 101... Kf6 {[%clk 0:00:42.9]} 102. Rb5 {[%clk 0:00:22]} 102... Ra8
{[%clk 0:00:41]} 103. h5 {[%clk 0:00:22.1]} 103... Ra4+ {[%clk 0:00:40.6]} 104.
Kg3 {[%clk 0:00:22.2]} 104... gxh5 {[%clk 0:00:41]} 105. Rxh5 {[%clk 0:00:21.8]}
105... Kg6 {[%clk 0:00:41.7]} 106. Rb5 {[%clk 0:00:21.7]} 106... Rd4 {[%clk
0:00:42.4]} 107. Kf3 {[%clk 0:00:20.9]} 107... Kf6 {[%clk 0:00:41.5]} 108. Ke3
{[%clk 0:00:21.3]} 108... Rh4 {[%clk 0:00:42]} 109. Kf3 {[%clk 0:00:21.8]}
109... Ke6 {[%clk 0:00:42.4]} 110. Kg3 {[%clk 0:00:22.1]} 110... Rc4 {[%clk
0:00:43]} 111. Kf3 {[%clk 0:00:22.6]} 111... Kd6 {[%clk 0:00:43.7]} 112. Ke3
{[%clk 0:00:23.2]} 112... Kc6 {[%clk 0:00:44.3]} 113. Rh5 {[%clk 0:00:23.7]}
113... Rc1 {[%clk 0:00:44.6]} 114. Kd3 {[%clk 0:00:24.2]} 114... Rg1 {[%clk
0:00:44.4]} 115. Ke2 {[%clk 0:00:24.3]} 115... Kd6 {[%clk 0:00:44.3]} 116. Kf3
{[%clk 0:00:24.7]} 116... Ra1 {[%clk 0:00:44.1]} 117. Ke4 {[%clk 0:00:25.2]}
117... Ke6 {[%clk 0:00:44.7]} 118. Rh6+ {[%clk 0:00:25.2]} 118... Kf7 {[%clk
0:00:45.4]} 119. Kf5 {[%clk 0:00:25.4]} 119... Kg7 {[%clk 0:00:46]} 120. Rb6
{[%clk 0:00:25.1]} 120... Ra7 {[%clk 0:00:45.5]} 121. Kg5 {[%clk 0:00:25.1]}
121... Ra5+ {[%clk 0:00:42.8]} 122. Kf4 {[%clk 0:00:25]} 122... Rd5 {[%clk
0:00:43.1]} 123. Kg4 {[%clk 0:00:25.1]} 123... Rc5 {[%clk 0:00:43.6]} 124. Kf4
{[%clk 0:00:25.6]} 124... Kf7 {[%clk 0:00:43.9]} 125. Ke4 {[%clk 0:00:25.7]}
125... Ke7 {[%clk 0:00:44.6]} 126. Kd4 {[%clk 0:00:26.2]} 126... Rh5 {[%clk
0:00:45.1]} 127. Ke4 {[%clk 0:00:26.5]} 127... Kd7 {[%clk 0:00:45.2]} 128. Kf4
{[%clk 0:00:27.1]} 128... Kc7 {[%clk 0:00:45.9]} 129. Rg6 {[%clk 0:00:27.6]}
129... Kd7 {[%clk 0:00:44.8]} 130. Kg4 {[%clk 0:00:27.5]} 130... Rb5 {[%clk
0:00:44.8]} 131. Rg5 {[%clk 0:00:27.8]} 131... Rb4+ {[%clk 0:00:44.4]} 132. Kf5
{[%clk 0:00:28.3]} 132... Ke7 {[%clk 0:00:44.4]} 133. Rg6 {[%clk 0:00:28]}
133... Kf7 {[%clk 0:00:44.9]} 134. Ra6 {[%clk 0:00:28.2]} 134... Rb5+ {[%clk
0:00:44.7]} 135. Ke4 {[%clk 0:00:28.7]} 135... Ke7 {[%clk 0:00:45.6]} 136. Kd4
{[%clk 0:00:28.8]} 136... Rg5 {[%clk 0:00:45.9]} 137. Ke4 {[%clk 0:00:29.2]}
137... Kd7 {[%clk 0:00:46.6]} 138. Kf4 {[%clk 0:00:29.6]} 138... Rb5 {[%clk
0:00:47.3]} 139. Ke4 {[%clk 0:00:30]} 139... Kc7 {[%clk 0:00:47.8]} 140. Rh6
{[%clk 0:00:30.7]} 140... Kd8 {[%clk 0:00:47.5]} 141. Kd4 {[%clk 0:00:31]}
141... Rg5 {[%clk 0:00:47.6]} 142. Rh7 {[%clk 0:00:31.2]} 142... Rg1 {[%clk
0:00:47]} 143. Ke5 {[%clk 0:00:31.5]} 143... Ke8 {[%clk 0:00:47.1]} 144. Kf6
{[%clk 0:00:31.7]} 144... Rf1+ {[%clk 0:00:47.4]} 145. Ke6 {[%clk 0:00:31.8]}
145... Kf8 {[%clk 0:00:48.1]} 146. Ke5 {[%clk 0:00:31.1]} 146... Kg8 {[%clk
0:00:48]} 147. Ra7 {[%clk 0:00:31.5]} 147... Re1+ {[%clk 0:00:47.6]} 148. Kf6
{[%clk 0:00:31.8]} 148... Rb1 {[%clk 0:00:46.7]} 149. Kg6 {[%clk 0:00:32]}
149... Rg1+ {[%clk 0:00:46.5]} 150. Kf6 {[%clk 0:00:32.3]} 150... Kh8 {[%clk
0:00:47.2]} 151. Rb7 {[%clk 0:00:31.2]} 151... Rg7 {[%clk 0:00:45.9]} 152. Rxg7
{[%clk 0:00:30.7]} 1/2-1/2